[Event "*** MasterClass Titled Tuesday Blitz"]
[Site "Chess.com"]
[Date "2017.12.12"]
[Round "5"]
[White "bascheyaro"]
[Black "MITerryble"]
[Result "0-1"]
[WhiteElo "2631"]
[BlackElo "2664"]
[TimeControl "180+2"]
[EndTime "14:03:41 PST"]
[Termination "MITerryble won by checkmate"]

1. d4 {[%clk 0:03:01.9]} 1... e6 {[%clk 0:03:00.4]} 2. c4 {[%clk 0:03:03.2]}
2... Bb4+ {[%clk 0:03:00.8]} 3. Bd2 {[%clk 0:03:04.1]} 3... Qe7 {[%clk
0:03:01.2]} 4. Nf3 {[%clk 0:03:05.1]} 4... Nf6 {[%clk 0:03:01.9]} 5. e3 {[%clk
0:03:06.4]} 5... O-O {[%clk 0:03:01.9]} 6. Bd3 {[%clk 0:03:07.6]} 6... Bxd2+
{[%clk 0:03:02.9]} 7. Qxd2 {[%clk 0:03:08.7]} 7... d6 {[%clk 0:03:04.8]} 8. Nc3
{[%clk 0:03:09.7]} 8... e5 {[%clk 0:03:06.2]} 9. Bc2 {[%clk 0:03:09.8]} 9... Bg4
{[%clk 0:03:04.6]} 10. h3 {[%clk 0:02:58.5]} 10... Bxf3 {[%clk 0:03:04.4]} 11.
gxf3 {[%clk 0:02:59.9]} 11... Nc6 {[%clk 0:02:46.4]} 12. d5 {[%clk 0:03:00.5]}
12... Nb4 {[%clk 0:02:45.2]} 13. O-O-O {[%clk 0:02:57.1]} 13... Nxc2 {[%clk
0:02:39.3]} 14. Qxc2 {[%clk 0:02:57.8]} 14... Nd7 {[%clk 0:02:40.1]} 15. h4
{[%clk 0:02:49.1]} 15... Kh8 {[%clk 0:02:40.2]} 16. h5 {[%clk 0:02:45]} 16...
Nc5 {[%clk 0:02:34.3]} 17. Qf5 {[%clk 0:02:44.9]} 17... Qd7 {[%clk 0:02:25.4]}
18. Qg5 {[%clk 0:02:33.4]} 18... f6 {[%clk 0:02:22.3]} 19. Qg3 {[%clk
0:02:28.9]} 19... a6 {[%clk 0:02:19.6]} 20. Rdg1 {[%clk 0:02:21.9]} 20... b5
{[%clk 0:02:14.4]} 21. Rh4 {[%clk 0:02:12.9]} 21... f5 {[%clk 0:02:04.6]} 22.
cxb5 {[%clk 0:01:55.2]} 22... axb5 {[%clk 0:02:04.8]} 23. Kb1 {[%clk 0:01:37.2]}
23... Rab8 {[%clk 0:01:50.4]} 24. a3 {[%clk 0:01:24.9]} 24... Rf7 {[%clk
0:01:50.5]} 25. Na2 {[%clk 0:01:23.1]} 25... f4 {[%clk 0:01:49.8]} 26. exf4
{[%clk 0:01:23.9]} 26... Qf5+ {[%clk 0:01:50.3]} 27. Kc1 {[%clk 0:01:22.1]}
27... exf4 {[%clk 0:01:21.2]} 28. Qg5 {[%clk 0:01:21.2]} 28... Nb3+ {[%clk
0:01:20.1]} 29. Kd1 {[%clk 0:01:21.4]} 29... Qd3+ {[%clk 0:01:20.5]} 30. Ke1
{[%clk 0:01:22.8]} 30... Re8+ {[%clk 0:01:21.2]} 31. Qe5 {[%clk 0:01:24.1]}
31... Rxe5# {[%clk 0:01:21.4]} 0-1

[Event "*** MasterClass Titled Tuesday Blitz"]
[Site "Chess.com"]
[Date "2017.12.12"]
[Round "5"]
[White "truki"]
[Black "gemarin"]
[Result "1-0"]
[WhiteElo "2214"]
[BlackElo "1844"]
[TimeControl "180+2"]
[EndTime "14:03:43 PST"]
[Termination "truki won by resignation"]

1. d4 {[%clk 0:03:01.9]} 1... d5 {[%clk 0:02:59.9]} 2. c4 {[%clk 0:03:02.5]}
2... c6 {[%clk 0:03:00.9]} 3. Nf3 {[%clk 0:03:03.9]} 3... Nf6 {[%clk 0:03:01.5]}
4. Qc2 {[%clk 0:03:05.4]} 4... Bg4 {[%clk 0:02:52]} 5. Ne5 {[%clk 0:03:05.3]}
5... Bh5 {[%clk 0:02:52.3]} 6. Bf4 {[%clk 0:03:06.6]} 6... e6 {[%clk 0:02:50.1]}
7. e3 {[%clk 0:03:07.8]} 7... Be7 {[%clk 0:02:49.6]} 8. Nc3 {[%clk 0:03:07.8]}
8... Nbd7 {[%clk 0:02:47.2]} 9. Qb3 {[%clk 0:03:07.2]} 9... Qb6 {[%clk
0:02:37.6]} 10. c5 {[%clk 0:03:08.2]} 10... Qxb3 {[%clk 0:02:37.1]} 11. axb3
{[%clk 0:03:10.1]} 11... Nxe5 {[%clk 0:02:36.1]} 12. Bxe5 {[%clk 0:03:11.1]}
12... O-O {[%clk 0:02:29.4]} 13. b4 {[%clk 0:03:12.1]} 13... Nd7 {[%clk
0:02:30.1]} 14. Bg3 {[%clk 0:03:13.4]} 14... a6 {[%clk 0:02:29.8]} 15. f4 {[%clk
0:03:11.1]} 15... f6 {[%clk 0:02:29.8]} 16. Bd3 {[%clk 0:03:05.6]} 16... Rae8
{[%clk 0:02:24.3]} 17. Kd2 {[%clk 0:03:05.8]} 17... Bd8 {[%clk 0:02:25.2]} 18.
e4 {[%clk 0:03:04.3]} 18... Bc7 {[%clk 0:02:13.1]} 19. Rae1 {[%clk 0:02:51]}
19... dxe4 {[%clk 0:02:10.5]} 20. Bxe4 {[%clk 0:02:49.3]} 20... e5 {[%clk
0:02:10.9]} 21. fxe5 {[%clk 0:02:48.7]} 21... fxe5 {[%clk 0:02:11.6]} 22. d5
{[%clk 0:02:50.2]} 22... Nf6 {[%clk 0:02:09.5]} 23. d6 {[%clk 0:02:50.9]} 23...
Bd8 {[%clk 0:02:07.8]} 24. Rhf1 {[%clk 0:02:45.4]} 24... a5 {[%clk 0:02:06.7]}
25. bxa5 {[%clk 0:02:41]} 25... Bxa5 {[%clk 0:02:06.2]} 26. Kd3 {[%clk
0:02:39.8]} 26... Nd5 {[%clk 0:02:02.8]} 27. Nxd5 {[%clk 0:02:38.3]} 27... Bxe1
{[%clk 0:01:57.2]} 28. Rxe1 {[%clk 0:02:29.9]} 28... cxd5 {[%clk 0:01:49.3]} 29.
Bxd5+ {[%clk 0:02:27.1]} 29... Bf7 {[%clk 0:01:50.8]} 30. Bxb7 {[%clk
0:02:27.7]} 30... Rb8 {[%clk 0:01:52.3]} 31. c6 {[%clk 0:02:28.6]} 31... Bg6+
{[%clk 0:01:51.3]} 32. Kc4 {[%clk 0:02:27.3]} 32... e4 {[%clk 0:01:50.8]} 33. d7
{[%clk 0:02:27.6]} 33... Rbd8 {[%clk 0:01:30.6]} 34. Bh4 {[%clk 0:02:28.7]}
34... Rb8 {[%clk 0:01:30.2]} 35. d8=Q {[%clk 0:02:18.8]} 35... Rfxd8 {[%clk
0:01:12.9]} 36. Bxd8 {[%clk 0:02:20.7]} 36... Rxd8 {[%clk 0:01:13.4]} 37. c7
{[%clk 0:02:20.1]} 37... Bf7+ {[%clk 0:01:15.2]} 38. Kc5 {[%clk 0:02:20.1]}
38... Re8 {[%clk 0:01:12.8]} 39. c8=Q {[%clk 0:02:19.8]} 39... Rxc8+ {[%clk
0:01:13]} 40. Bxc8 {[%clk 0:02:21.7]} 1-0

[Event "*** MasterClass Titled Tuesday Blitz"]
[Site "Chess.com"]
[Date "2017.12.12"]
[Round "5"]
[White "Salem-AR"]
[Black "GMHess"]
[Result "1-0"]
[WhiteElo "2827"]
[BlackElo "2582"]
[TimeControl "180+2"]
[EndTime "14:04:22 PST"]
[Termination "Salem-AR won by resignation"]

1. Nf3 {[%clk 0:03:01.9]} 1... Nf6 {[%clk 0:02:17.6]} 2. c4 {[%clk 0:03:02.4]}
2... e6 {[%clk 0:02:13.5]} 3. d4 {[%clk 0:03:02.6]} 3... d5 {[%clk 0:02:14.1]}
4. Nc3 {[%clk 0:03:03.4]} 4... Be7 {[%clk 0:02:13.4]} 5. g3 {[%clk 0:03:01.5]}
5... O-O {[%clk 0:02:14.6]} 6. Bg2 {[%clk 0:03:03.1]} 6... dxc4 {[%clk
0:02:14.9]} 7. O-O {[%clk 0:03:04.3]} 7... Nc6 {[%clk 0:02:16]} 8. e4 {[%clk
0:03:01]} 8... Rb8 {[%clk 0:02:16.3]} 9. a3 {[%clk 0:03:00.9]} 9... Na5 {[%clk
0:02:13.3]} 10. Bf4 {[%clk 0:02:59.1]} 10... b5 {[%clk 0:02:06.5]} 11. Qe2
{[%clk 0:02:59.3]} 11... Ba6 {[%clk 0:00:59.4]} 12. Rfe1 {[%clk 0:02:54.3]}
12... Nb3 {[%clk 0:00:54.1]} 13. Rad1 {[%clk 0:02:54.7]} 13... b4 {[%clk
0:00:52.4]} 14. axb4 {[%clk 0:02:56.6]} 14... Bxb4 {[%clk 0:00:54]} 15. Bg5
{[%clk 0:02:51.4]} 15... h6 {[%clk 0:00:49.6]} 16. Bh4 {[%clk 0:02:52.1]} 16...
Be7 {[%clk 0:00:29.5]} 17. d5 {[%clk 0:02:53.2]} 17... exd5 {[%clk 0:00:20.9]}
18. Nxd5 {[%clk 0:02:53.4]} 18... Nxd5 {[%clk 0:00:19.1]} 19. Rxd5 {[%clk
0:02:55.3]} 19... Bxh4 {[%clk 0:00:19.7]} 20. Rxd8 {[%clk 0:02:53.3]} 20... Bxd8
{[%clk 0:00:21.6]} 21. Ne5 {[%clk 0:02:51.7]} 21... Bf6 {[%clk 0:00:22.3]} 22.
Nd7 {[%clk 0:02:52.9]} 22... Bd4 {[%clk 0:00:14.7]} 23. e5 {[%clk 0:02:47.4]}
23... Rbe8 {[%clk 0:00:11.4]} 24. Bd5 {[%clk 0:02:42.6]} 24... Re7 {[%clk
0:00:09.6]} 25. Nxf8 {[%clk 0:02:42.9]} 25... Rxe5 {[%clk 0:00:11.1]} 26. Qxe5
{[%clk 0:02:01.5]} 26... Bxe5 {[%clk 0:00:13]} 27. Ng6 {[%clk 0:01:56.4]} 27...
Bxb2 {[%clk 0:00:06.8]} 28. Re8+ {[%clk 0:01:56.3]} 28... Kh7 {[%clk 0:00:07.4]}
29. Bxf7 {[%clk 0:01:57.5]} 1-0

[Event "*** MasterClass Titled Tuesday Blitz"]
[Site "Chess.com"]
[Date "2017.12.12"]
[Round "5"]
[White "Swarajan"]
[Black "Enzy63"]
[Result "0-1"]
[WhiteElo "2074"]
[BlackElo "2067"]
[TimeControl "180+2"]
[EndTime "14:04:57 PST"]
[Termination "Enzy63 won by resignation"]

1. d4 {[%clk 0:03:01.9]} 1... Nf6 {[%clk 0:02:59.5]} 2. c4 {[%clk 0:03:02.9]}
2... g6 {[%clk 0:03:00.9]} 3. Nc3 {[%clk 0:03:00.5]} 3... Bg7 {[%clk 0:03:02]}
4. e4 {[%clk 0:02:58.7]} 4... d6 {[%clk 0:03:03]} 5. Nf3 {[%clk 0:02:59.8]} 5...
O-O {[%clk 0:03:03.8]} 6. Be2 {[%clk 0:03:01]} 6... Nbd7 {[%clk 0:03:04.5]} 7.
O-O {[%clk 0:03:02.5]} 7... e5 {[%clk 0:03:05.9]} 8. Be3 {[%clk 0:02:59.3]} 8...
Qe7 {[%clk 0:03:06.3]} 9. d5 {[%clk 0:02:59.1]} 9... c5 {[%clk 0:03:02.7]} 10.
dxc6 {[%clk 0:02:51.4]} 10... bxc6 {[%clk 0:03:02.9]} 11. Qd2 {[%clk 0:02:50.2]}
11... Nc5 {[%clk 0:02:55.5]} 12. Bd3 {[%clk 0:02:43.8]} 12... Rb8 {[%clk
0:02:45.3]} 13. Bxc5 {[%clk 0:02:42.2]} 13... dxc5 {[%clk 0:02:45.2]} 14. b3
{[%clk 0:02:40]} 14... Nh5 {[%clk 0:02:35.4]} 15. Ne2 {[%clk 0:02:33.5]} 15...
Bg4 {[%clk 0:02:24.7]} 16. Qe3 {[%clk 0:02:29.9]} 16... f5 {[%clk 0:02:09.1]}
17. Ne1 {[%clk 0:02:04.4]} 17... f4 {[%clk 0:02:04.4]} 18. Qd2 {[%clk
0:02:01.5]} 18... f3 {[%clk 0:02:02.7]} 19. Ng3 {[%clk 0:02:02.3]} 19... fxg2
{[%clk 0:01:46.1]} 20. Nxg2 {[%clk 0:01:58.1]} 20... Nf4 {[%clk 0:01:36.3]} 21.
Bc2 {[%clk 0:01:32.1]} 21... Bf3 {[%clk 0:01:27.1]} 22. Nxf4 {[%clk 0:01:14]}
22... exf4 {[%clk 0:01:26.9]} 23. Rae1 {[%clk 0:01:03.5]} 23... fxg3 {[%clk
0:01:03]} 24. hxg3 {[%clk 0:00:57]} 24... Rbd8 {[%clk 0:01:03.1]} 25. Qc1 {[%clk
0:00:46.3]} 25... Bd4 {[%clk 0:01:03.3]} 26. Bd1 {[%clk 0:00:42.3]} 26... Qe5
{[%clk 0:01:03.3]} 27. Bxf3 {[%clk 0:00:42.4]} 27... Qxg3+ {[%clk 0:00:53.2]}
0-1

[Event "*** MasterClass Titled Tuesday Blitz"]
[Site "Chess.com"]
[Date "2017.12.12"]
[Round "5"]
[White "windking123"]
[Black "champ1000"]
[Result "0-1"]
[WhiteElo "2373"]
[BlackElo "2268"]
[TimeControl "180+2"]
[EndTime "14:05:09 PST"]
[Termination "champ1000 won by resignation"]

1. e4 {[%clk 0:03:01.9]} 1... c5 {[%clk 0:03:00.5]} 2. d4 {[%clk 0:03:03.4]}
2... cxd4 {[%clk 0:03:01.3]} 3. c3 {[%clk 0:03:05.2]} 3... d3 {[%clk 0:03:01.8]}
4. Bxd3 {[%clk 0:03:06.9]} 4... Nc6 {[%clk 0:03:02.2]} 5. Nf3 {[%clk 0:03:08.6]}
5... g6 {[%clk 0:03:03.4]} 6. O-O {[%clk 0:03:10.3]} 6... Bg7 {[%clk 0:03:04.8]}
7. Qe2 {[%clk 0:03:11.7]} 7... d6 {[%clk 0:03:04.5]} 8. Rd1 {[%clk 0:03:13.3]}
8... Bd7 {[%clk 0:03:03.6]} 9. c4 {[%clk 0:03:14.6]} 9... Nf6 {[%clk 0:03:04.4]}
10. Nc3 {[%clk 0:03:16.1]} 10... O-O {[%clk 0:03:05.6]} 11. Bf4 {[%clk
0:03:13.9]} 11... Rc8 {[%clk 0:03:04.4]} 12. Rac1 {[%clk 0:03:15.1]} 12... Bg4
{[%clk 0:02:58.5]} 13. Qe3 {[%clk 0:03:13.1]} 13... Nd7 {[%clk 0:02:52.2]} 14.
h3 {[%clk 0:03:03.8]} 14... Bxf3 {[%clk 0:02:51.4]} 15. Qxf3 {[%clk 0:03:05.7]}
15... Nce5 {[%clk 0:02:47.3]} 16. Qe2 {[%clk 0:03:05.8]} 16... Nxd3 {[%clk
0:02:42.6]} 17. Qxd3 {[%clk 0:03:05.8]} 17... Ne5 {[%clk 0:02:43.7]} 18. Bxe5
{[%clk 0:03:07.2]} 18... Bxe5 {[%clk 0:02:44.4]} 19. b3 {[%clk 0:03:08.8]} 19...
a6 {[%clk 0:02:37.2]} 20. a4 {[%clk 0:03:08.5]} 20... Re8 {[%clk 0:02:17.8]} 21.
Nd5 {[%clk 0:03:07.2]} 21... h5 {[%clk 0:02:10.8]} 22. f4 {[%clk 0:03:05.1]}
22... Bg7 {[%clk 0:02:10.3]} 23. f5 {[%clk 0:03:06.5]} 23... e6 {[%clk
0:02:05.8]} 24. fxg6 {[%clk 0:02:54]} 24... fxg6 {[%clk 0:01:32.9]} 25. Nf4
{[%clk 0:02:54.8]} 25... Qg5 {[%clk 0:01:32.6]} 26. Qxd6 {[%clk 0:02:12.8]}
26... Be5 {[%clk 0:01:30.3]} 27. Nxe6 {[%clk 0:02:00.4]} 27... Qxc1 {[%clk
0:01:26.9]} 28. Qd5 {[%clk 0:01:47.6]} 28... Qe3+ {[%clk 0:00:55.6]} 29. Kh1
{[%clk 0:01:43.8]} 29... Qg3 {[%clk 0:00:53.2]} 30. Ng5+ {[%clk 0:00:54.3]}
30... Kg7 {[%clk 0:00:51.5]} 31. Qf7+ {[%clk 0:00:47.6]} 31... Kh6 {[%clk
0:00:51.6]} 32. Nf3 {[%clk 0:00:41.1]} 32... Rf8 {[%clk 0:00:50.8]} 33. Qe6
{[%clk 0:00:38.3]} 33... Rxf3 {[%clk 0:00:49.2]} 0-1

[Event "*** MasterClass Titled Tuesday Blitz"]
[Site "Chess.com"]
[Date "2017.12.12"]
[Round "5"]
[White "Blitzstream"]
[Black "juniortay"]
[Result "1-0"]
[WhiteElo "2493"]
[BlackElo "2321"]
[TimeControl "180+2"]
[EndTime "14:05:36 PST"]
[Termination "Blitzstream won by resignation"]

1. d4 {[%clk 0:03:01.9]} 1... Nf6 {[%clk 0:02:59.7]} 2. Bg5 {[%clk 0:03:02.2]}
2... Ne4 {[%clk 0:03:00]} 3. Bh4 {[%clk 0:03:00.9]} 3... c5 {[%clk 0:03:00.3]}
4. f3 {[%clk 0:03:00.5]} 4... g5 {[%clk 0:03:01.3]} 5. fxe4 {[%clk 0:03:02.4]}
5... gxh4 {[%clk 0:03:02.2]} 6. e3 {[%clk 0:03:03.2]} 6... Bg7 {[%clk 0:03:01]}
7. Nf3 {[%clk 0:02:56.7]} 7... Nc6 {[%clk 0:03:00.2]} 8. c3 {[%clk 0:02:56.6]}
8... Qb6 {[%clk 0:02:56.3]} 9. Qb3 {[%clk 0:02:53.5]} 9... Qa5 {[%clk
0:02:28.9]} 10. Nbd2 {[%clk 0:02:53.2]} 10... cxd4 {[%clk 0:02:23.7]} 11. exd4
{[%clk 0:02:54.1]} 11... Qh5 {[%clk 0:02:22.7]} 12. O-O-O {[%clk 0:02:48.9]}
12... O-O {[%clk 0:02:17.4]} 13. Bd3 {[%clk 0:02:43.1]} 13... d6 {[%clk
0:01:43.2]} 14. Rdf1 {[%clk 0:02:40.9]} 14... Rb8 {[%clk 0:01:26.6]} 15. Qd5
{[%clk 0:02:32.5]} 15... Qh6 {[%clk 0:01:13.7]} 16. g3 {[%clk 0:01:47.4]} 16...
Bh3 {[%clk 0:01:05]} 17. Rf2 {[%clk 0:01:40.9]} 17... Qe3 {[%clk 0:00:57.7]} 18.
Bf1 {[%clk 0:00:40]} 18... Qxf2 {[%clk 0:00:36]} 19. Bxh3 {[%clk 0:00:40.6]}
19... Bh6 {[%clk 0:00:21.2]} 20. Qh5 {[%clk 0:00:30.8]} 20... Bxd2+ {[%clk
0:00:18.1]} 21. Nxd2 {[%clk 0:00:32.2]} 21... Qf6 {[%clk 0:00:19.5]} 22. Rf1
{[%clk 0:00:23.6]} 22... Qg7 {[%clk 0:00:17.1]} 23. Qxh4 {[%clk 0:00:24.3]}
23... e6 {[%clk 0:00:15.7]} 24. Rf4 {[%clk 0:00:22.5]} 24... Ne7 {[%clk
0:00:16.5]} 25. Qxe7 {[%clk 0:00:22.1]} 25... Kh8 {[%clk 0:00:14]} 26. Qh4
{[%clk 0:00:17.2]} 26... Rbd8 {[%clk 0:00:13.9]} 27. Rg4 {[%clk 0:00:18.3]} 1-0

[Event "*** MasterClass Titled Tuesday Blitz"]
[Site "Chess.com"]
[Date "2017.12.12"]
[Round "5"]
[White "JSMastropiero"]
[Black "Alex_Banzea"]
[Result "0-1"]
[WhiteElo "2309"]
[BlackElo "2237"]
[TimeControl "180+2"]
[EndTime "14:05:39 PST"]
[Termination "Alex_Banzea won by checkmate"]

1. d4 {[%clk 0:03:01.9]} 1... Nf6 {[%clk 0:02:56.6]} 2. c4 {[%clk 0:03:02.2]}
2... e6 {[%clk 0:02:57.1]} 3. g3 {[%clk 0:03:02.4]} 3... c5 {[%clk 0:02:56.2]}
4. Nf3 {[%clk 0:03:01.5]} 4... cxd4 {[%clk 0:02:55.9]} 5. Nxd4 {[%clk
0:03:02.2]} 5... d5 {[%clk 0:02:57.8]} 6. Bg2 {[%clk 0:03:01.8]} 6... e5 {[%clk
0:02:56.1]} 7. Nf3 {[%clk 0:03:02.1]} 7... d4 {[%clk 0:02:56.8]} 8. O-O {[%clk
0:03:02.4]} 8... Nc6 {[%clk 0:02:56.7]} 9. e3 {[%clk 0:03:02.1]} 9... Be7 {[%clk
0:02:57.4]} 10. exd4 {[%clk 0:03:02.2]} 10... exd4 {[%clk 0:02:57.9]} 11. Bf4
{[%clk 0:03:02.3]} 11... Be6 {[%clk 0:02:59.4]} 12. Nbd2 {[%clk 0:02:46]} 12...
O-O {[%clk 0:02:57.3]} 13. Ne5 {[%clk 0:02:43.7]} 13... Rc8 {[%clk 0:02:56]} 14.
Nxc6 {[%clk 0:02:39.7]} 14... bxc6 {[%clk 0:02:56.7]} 15. Qa4 {[%clk 0:02:39.1]}
15... Qb6 {[%clk 0:02:54.4]} 16. Nb3 {[%clk 0:02:26.3]} 16... c5 {[%clk
0:02:35.3]} 17. Bd2 {[%clk 0:02:17]} 17... Rfe8 {[%clk 0:02:13.8]} 18. Rfe1
{[%clk 0:02:14.3]} 18... h6 {[%clk 0:02:02.2]} 19. Ba5 {[%clk 0:02:11.2]} 19...
Qd6 {[%clk 0:02:02.7]} 20. Nc1 {[%clk 0:02:05.8]} 20... Bf5 {[%clk 0:02:01.1]}
21. Qd1 {[%clk 0:02:02.3]} 21... Nd7 {[%clk 0:02:01.6]} 22. Nd3 {[%clk
0:02:00.2]} 22... Bf6 {[%clk 0:01:59.5]} 23. Bd5 {[%clk 0:01:40.1]} 23... g6
{[%clk 0:01:38.5]} 24. Qf3 {[%clk 0:01:36.9]} 24... h5 {[%clk 0:01:39.1]} 25.
Bd2 {[%clk 0:01:33]} 25... Ne5 {[%clk 0:01:34.9]} 26. Nxe5 {[%clk 0:01:33.3]}
26... Bxe5 {[%clk 0:01:35.1]} 27. h3 {[%clk 0:01:06]} 27... Qd7 {[%clk
0:01:25.7]} 28. Bf4 {[%clk 0:00:59.2]} 28... Bxf4 {[%clk 0:01:21.5]} 29. Qxf4
{[%clk 0:01:00.2]} 29... Bxh3 {[%clk 0:01:21.5]} 30. Qf6 {[%clk 0:00:58.9]}
30... Be6 {[%clk 0:01:22.4]} 31. Be4 {[%clk 0:00:43.4]} 31... Qd8 {[%clk
0:01:12.8]} 32. Qf4 {[%clk 0:00:38]} 32... Bxc4 {[%clk 0:01:12]} 33. Qh6 {[%clk
0:00:38.6]} 33... Qf6 {[%clk 0:01:11.8]} 34. b3 {[%clk 0:00:38.3]} 34... Be6
{[%clk 0:01:10.3]} 35. Kg2 {[%clk 0:00:38.2]} 35... c4 {[%clk 0:01:06.8]} 36.
bxc4 {[%clk 0:00:38.2]} 36... Bxc4 {[%clk 0:01:07.9]} 37. Rad1 {[%clk 0:00:34]}
37... Rxe4 {[%clk 0:01:06.6]} 38. Rxe4 {[%clk 0:00:30.8]} 38... Bd5 {[%clk
0:01:08]} 39. f3 {[%clk 0:00:25.5]} 39... Bxe4 {[%clk 0:01:08.1]} 40. fxe4
{[%clk 0:00:27.4]} 40... Rc2+ {[%clk 0:01:09.1]} 41. Kh3 {[%clk 0:00:25.8]}
41... Qe6+ {[%clk 0:01:08]} 42. Kh4 {[%clk 0:00:26.3]} 42... Qg4# {[%clk
0:01:08.9]} 0-1

[Event "*** MasterClass Titled Tuesday Blitz"]
[Site "Chess.com"]
[Date "2017.12.12"]
[Round "5"]
[White "kereswasbest"]
[Black "FearNoEvil12"]
[Result "0-1"]
[WhiteElo "2213"]
[BlackElo "2061"]
[TimeControl "180+2"]
[EndTime "14:05:44 PST"]
[Termination "FearNoEvil12 won by resignation"]

1. e4 {[%clk 0:03:01.9]} 1... a6 {[%clk 0:02:58.4]} 2. d4 {[%clk 0:03:02.2]}
2... b5 {[%clk 0:02:59.9]} 3. a4 {[%clk 0:03:00.5]} 3... b4 {[%clk 0:02:59.2]}
4. c4 {[%clk 0:03:00.4]} 4... bxc3 {[%clk 0:02:58.2]} 5. Nxc3 {[%clk 0:03:00.8]}
5... Bb7 {[%clk 0:02:59.6]} 6. Bc4 {[%clk 0:03:01.2]} 6... e6 {[%clk 0:03:00.9]}
7. Qb3 {[%clk 0:02:56.8]} 7... Nc6 {[%clk 0:02:55.9]} 8. d5 {[%clk 0:02:32]}
8... Na5 {[%clk 0:02:52]} 9. Qa2 {[%clk 0:02:33.1]} 9... Nf6 {[%clk 0:02:44]}
10. Bg5 {[%clk 0:02:20.1]} 10... Be7 {[%clk 0:02:44.1]} 11. Bxf6 {[%clk
0:02:13.8]} 11... Bxf6 {[%clk 0:02:43.9]} 12. Nge2 {[%clk 0:02:13.8]} 12... O-O
{[%clk 0:02:42]} 13. Bd3 {[%clk 0:02:09.5]} 13... Bxc3+ {[%clk 0:02:33.6]} 14.
Nxc3 {[%clk 0:02:10.2]} 14... exd5 {[%clk 0:02:34]} 15. exd5 {[%clk 0:02:10.9]}
15... Re8+ {[%clk 0:02:33.4]} 16. Kf1 {[%clk 0:02:11.5]} 16... Qh4 {[%clk
0:02:20.7]} 17. h3 {[%clk 0:02:01.9]} 17... Qb4 {[%clk 0:02:13.9]} 18. Rd1
{[%clk 0:01:53]} 18... Nb3 {[%clk 0:02:11.4]} 19. Kg1 {[%clk 0:01:25.4]} 19...
Nc5 {[%clk 0:02:09.4]} 20. Bc2 {[%clk 0:01:21.1]} 20... Re5 {[%clk 0:01:56.2]}
21. Qb1 {[%clk 0:01:04.2]} 21... Rae8 {[%clk 0:01:47]} 22. Bxh7+ {[%clk
0:01:02.5]} 22... Kh8 {[%clk 0:01:47.6]} 23. Bc2 {[%clk 0:01:03.3]} 23... c6
{[%clk 0:01:30.4]} 24. d6 {[%clk 0:00:53.3]} 24... Ne6 {[%clk 0:01:20.1]} 25.
Qc1 {[%clk 0:00:50.5]} 25... c5 {[%clk 0:01:17.9]} 26. Kh2 {[%clk 0:00:43.2]}
26... Rg5 {[%clk 0:01:14.5]} 27. f3 {[%clk 0:00:33]} 27... Nf4 {[%clk
0:01:13.6]} 28. Rhg1 {[%clk 0:00:29.2]} 28... f6 {[%clk 0:01:08.4]} 29. Be4
{[%clk 0:00:25.3]} 29... Bxe4 {[%clk 0:00:58]} 30. Nxe4 {[%clk 0:00:26.4]} 30...
Ne2 {[%clk 0:00:54]} 31. Qd2 {[%clk 0:00:18.1]} 31... Rxe4 {[%clk 0:00:52.7]}
32. fxe4 {[%clk 0:00:16.2]} 32... Qxe4 {[%clk 0:00:54.1]} 33. Rde1 {[%clk
0:00:14.4]} 33... Qe5+ {[%clk 0:00:54.5]} 34. g3 {[%clk 0:00:15.1]} 34... Rxg3
{[%clk 0:00:51]} 35. Rxe2 {[%clk 0:00:15.5]} 35... Re3+ {[%clk 0:00:51.5]} 36.
Kh1 {[%clk 0:00:14.7]} 36... Rxe2 {[%clk 0:00:52.2]} 37. Rg2 {[%clk 0:00:07.3]}
37... Rxd2 {[%clk 0:00:51.1]} 0-1

[Event "*** MasterClass Titled Tuesday Blitz"]
[Site "Chess.com"]
[Date "2017.12.12"]
[Round "5"]
[White "Vamostodorecto"]
[Black "ChainsOfFantasia"]
[Result "1-0"]
[WhiteElo "2336"]
[BlackElo "2467"]
[TimeControl "180+2"]
[EndTime "14:05:52 PST"]
[Termination "Vamostodorecto won by checkmate"]

1. d4 {[%clk 0:02:52.4]} 1... Nf6 {[%clk 0:03:00.6]} 2. c4 {[%clk 0:02:52.4]}
2... e6 {[%clk 0:03:01.1]} 3. Nc3 {[%clk 0:02:52.8]} 3... d5 {[%clk 0:03:01.5]}
4. cxd5 {[%clk 0:02:53]} 4... Nxd5 {[%clk 0:03:02.1]} 5. e4 {[%clk 0:02:53.4]}
5... Nxc3 {[%clk 0:03:03.5]} 6. bxc3 {[%clk 0:02:55.3]} 6... c5 {[%clk
0:03:05.2]} 7. Nf3 {[%clk 0:02:55.6]} 7... cxd4 {[%clk 0:03:07.1]} 8. cxd4
{[%clk 0:02:57.3]} 8... Bb4+ {[%clk 0:03:08.6]} 9. Bd2 {[%clk 0:02:58]} 9...
Bxd2+ {[%clk 0:03:10]} 10. Qxd2 {[%clk 0:02:59.9]} 10... O-O {[%clk 0:03:11.2]}
11. e5 {[%clk 0:02:56.2]} 11... b6 {[%clk 0:03:10.3]} 12. Be2 {[%clk 0:02:49.8]}
12... Ba6 {[%clk 0:03:09]} 13. O-O {[%clk 0:02:47.6]} 13... Qd7 {[%clk 0:03:07]}
14. Rad1 {[%clk 0:02:41.4]} 14... Rd8 {[%clk 0:03:04.9]} 15. Ng5 {[%clk
0:02:38.3]} 15... Bxe2 {[%clk 0:02:50.5]} 16. Qxe2 {[%clk 0:02:40.2]} 16... Nc6
{[%clk 0:02:51.7]} 17. Qe4 {[%clk 0:02:37.3]} 17... g6 {[%clk 0:02:45.4]} 18.
Qh4 {[%clk 0:02:37]} 18... h5 {[%clk 0:02:40.2]} 19. Ne4 {[%clk 0:02:37.4]}
19... Kg7 {[%clk 0:02:18.9]} 20. Nf6 {[%clk 0:02:32.5]} 20... Qb7 {[%clk
0:02:11.6]} 21. Qg5 {[%clk 0:02:18.6]} 21... Rh8 {[%clk 0:01:54.1]} 22. f4
{[%clk 0:02:05.3]} 22... Ne7 {[%clk 0:01:49.7]} 23. d5 {[%clk 0:01:57]} 23...
Nxd5 {[%clk 0:01:27.6]} 24. f5 {[%clk 0:01:44.9]} 24... Rad8 {[%clk 0:01:09.7]}
25. fxg6 {[%clk 0:01:38.7]} 25... fxg6 {[%clk 0:01:09.8]} 26. Nxh5+ {[%clk
0:01:31.6]} 26... Rxh5 {[%clk 0:01:10.3]} 27. Qxd8 {[%clk 0:01:31.7]} 27... Rf5
{[%clk 0:00:47.2]} 28. Rxf5 {[%clk 0:01:26.3]} 28... gxf5 {[%clk 0:00:49.1]} 29.
Qg5+ {[%clk 0:01:20.9]} 29... Kf7 {[%clk 0:00:49.6]} 30. h4 {[%clk 0:01:20.3]}
30... Qa6 {[%clk 0:00:43.6]} 31. Rxd5 {[%clk 0:00:52.7]} 31... exd5 {[%clk
0:00:42.8]} 32. Qxf5+ {[%clk 0:00:54]} 32... Kg7 {[%clk 0:00:44]} 33. Qf6+
{[%clk 0:00:53.5]} 33... Kh7 {[%clk 0:00:44.4]} 34. e6 {[%clk 0:00:53.5]} 34...
Qe2 {[%clk 0:00:44.4]} 35. e7 {[%clk 0:00:50.3]} 35... Qe1+ {[%clk 0:00:45.2]}
36. Kh2 {[%clk 0:00:49.8]} 36... d4 {[%clk 0:00:37.2]} 37. Qf7+ {[%clk
0:00:42.8]} 37... Kh6 {[%clk 0:00:38.1]} 38. e8=Q {[%clk 0:00:34]} 38... Qxh4+
{[%clk 0:00:39.5]} 39. Kg1 {[%clk 0:00:34.7]} 39... Qg5 {[%clk 0:00:39.1]} 40.
Qh8# {[%clk 0:00:32.3]} 1-0